fUSD/lending_fUSD_20260122
["ID","MTS","AMOUNT","RATE_DAILY","PERIOD"]
[403020869,1769073973245,-218.24227358,0.00016079,2]
[403020870,1769073975279,-171.63552027,0.00016079,2]
[403020871,1769073976730,-273.29252127,0.00016079,2]
[403020872,1769073978917,-235.34687346,0.00016079,2]
[403020873,1769073981882,-155.24071074,0.00016079,2]
[403020874,1769073984343,-184.38641674,0.00016079,2]
[403020875,1769073985941,-156.27,0.00016079,2]
[403020878,1769073990930,-399.30939117,0.00016079,2]
[403020879,1769073992465,-359.27818828,0.00016079,2]
[403020880,1769073996502,-205.66373875,0.00016079,2]
[403020881,1769073998020,-292.06724909,0.00016079,2]
[403020882,1769074000870,-423.92275899,0.00016079,2]
[403020883,1769074002314,-303.0480494,0.00016079,2]
[403020884,1769074003859,-207.93275091,0.00016079,2]
[403020885,1769074004791,195.11,0.00015742,2]
[403020886,1769074007683,-183.381527,0.00016079,2]
[403020887,1769074012784,-334.0474921,0.00016079,2]
[403020888,1769074015550,-431.28818409,0.00016079,2]
[403020901,1769074192663,1312.95,0.0001574,2]
[403020911,1769074232003,-12.58252679,0.00016079,2]
[403020912,1769074232014,-600.0,0.00016282,2]
[403020913,1769074232024,-51.80155258,0.00016484,2]
[403020914,1769074232040,-248.19844742,0.00016484,2]
[403020915,1769074232050,-1155.64880863,0.00016484,2]
[403020916,1769074232093,-44.35119137,0.00016484,2]
[403020917,1769074232104,-300.0,0.00016484,2]
[403020918,1769074232114,-7734.07629804,0.00016485,2]
[403020919,1769074232123,-1312.95,0.00016527,2]
[403020920,1769074232134,-221.54570433,0.00016568,2]
[403020921,1769074232144,-1531.97,0.00016575,2]
[403020922,1769074232154,-1531.97,0.00016575,2]
[403020923,1769074232164,-508.92671197,0.00016575,2]
[403020924,1769074232179,-178.331615,0.00016582,2]
[403020926,1769074232194,-550.0,0.00016583,2]
[403020929,1769074232204,-500.0,0.00016584,2]
[403020931,1769074232215,-158.591,0.00016584,2]
[403020933,1769074232224,-500.0,0.00016584,2]
[403020935,1769074232234,-500.0,0.00016584,2]
[403020937,1769074232243,-500.0,0.00016584,2]
[403020939,1769074232253,-500.0,0.00016584,2]
[403020942,1769074232263,-500.0,0.00016584,2]
[403020945,1769074232274,-500.0,0.00016584,2]
[403020948,1769074232283,-500.0,0.00016584,2]
[403020950,1769074232293,-500.0,0.00016584,2]
[403020952,1769074232302,-250.0,0.00016584,2]
[403020953,1769074232312,-500.0,0.00016584,2]
[403020954,1769074232322,-155.0,0.00016584,2]
[403020955,1769074232332,-500.0,0.00016584,2]
[403020956,1769074232342,-231.5,0.00016584,2]
[403020957,1769074232352,-502.97030487,0.00016584,2]
[403020958,1769074232362,-500.0,0.00016584,2]
[403020959,1769074232373,-500.0,0.00016584,2]
[403020960,1769074232383,-533.20641898,0.00016584,2]
[403020961,1769074232393,-500.0,0.00016584,2]
[403020962,1769074232402,-500.0,0.00016584,2]
[403020963,1769074232411,-500.0,0.00016585,2]
[403020964,1769074232421,-103921.07799919,0.00016585,2]
[403020966,1769074237880,-1576.99338827,0.00016585,2]
[403020967,1769074237892,-950.98,0.00016585,2]
[403020968,1769074238041,-6004.37796192,0.00016585,2]
[403020969,1769074238148,-31196.45370582,0.00016585,2]
[403020970,1769074238158,-34840.3232743,0.00016585,2]
[403020971,1769074238168,-1277.78708036,0.00016585,2]
[403020972,1769074238178,-200.0,0.00016585,2]
[403020973,1769074238189,-151.0,0.00016585,2]
[403020974,1769074238199,-123947.7741798,0.00016585,2]
[403020975,1769074238207,-161234.5538797,0.00016585,2]
[403020976,1769074238218,-155.049246,0.00016585,2]
[403020977,1769074238227,-4815.1284296,0.00016585,2]
[403020978,1769074238237,-154.320814,0.00016585,2]
[403020979,1769074238247,-151.0,0.00016585,2]
[403020980,1769074238257,-151.0,0.00016585,2]
[403020981,1769074238267,-151.0,0.00016585,2]
[403020982,1769074238276,-155.439204,0.00016585,2]
[403020983,1769074238286,-9999.99,0.00016585,2]
[403020984,1769074238296,-151.0,0.00016585,2]
[403020985,1769074238305,-153.371315,0.00016585,2]
[403020987,1769074238314,-151.0,0.00016585,2]
[403020989,1769074238323,-153.371315,0.00016585,2]
[403020991,1769074238333,-151.0,0.00016585,2]
[403020993,1769074238342,-153.371315,0.00016585,2]
[403020995,1769074238352,-153.371315,0.00016585,2]
[403020997,1769074238361,-151.0,0.00016585,2]
[403020999,1769074238371,-151.0,0.00016585,2]
[403021001,1769074238380,-151.0,0.00016585,2]
[403021003,1769074238390,-151.0,0.00016585,2]
[403021005,1769074238399,-151.0,0.00016585,2]
[403021007,1769074238408,-250.0,0.00016585,2]
[403021009,1769074238419,-250.0,0.00016585,2]
[403021011,1769074238428,-250.0,0.00016585,2]
[403021013,1769074238438,-250.0,0.00016585,2]
[403021015,1769074238447,-250.0,0.00016585,2]
[403021016,1769074238455,-151.0,0.00016585,2]
[403021017,1769074238465,-250.0,0.00016585,2]
[403021018,1769074238474,-250.0,0.00016585,2]
[403021019,1769074238483,-250.0,0.00016585,2]
[403021020,1769074238493,-250.0,0.00016585,2]
[403021021,1769074238504,-250.0,0.00016585,2]
[403021022,1769074238515,-250.0,0.00016585,2]
[403021023,1769074238524,-250.0,0.00016585,2]
[403021024,1769074238534,-250.0,0.00016585,2]
[403021025,1769074238543,-692.55,0.00016619,2]
[403021026,1769074238552,-166.66,0.00016644,2]
[403021027,1769074238824,-504.0,0.00016658,2]
[403021028,1769074238839,-692.55,0.00016662,2]
[403021029,1769074238850,-250.0,0.00016664,2]
[403021030,1769074238859,-692.55,0.00016704,2]
[403021031,1769074238868,-692.55,0.00016746,2]
[403021032,1769074238877,-500.0,0.00016751,2]
[403021033,1769074238887,-500.0,0.00016751,2]
[403021034,1769074238896,-500.0,0.00016751,2]
[403021035,1769074238905,-151.0,0.00016752,2]
[403021036,1769074238914,-151.0,0.00016752,2]
[403021037,1769074238923,-153.371315,0.00016752,2]
[403021038,1769074238933,-151.0,0.00016752,2]
[403021039,1769074238942,-153.371315,0.00016752,2]
[403021040,1769074238952,-151.0,0.00016752,2]
[403021041,1769074238962,-153.371315,0.00016752,2]
[403021042,1769074238971,-153.371315,0.00016752,2]
[403021043,1769074238981,-876.0,0.00016763,2]
[403021044,1769074238991,-177.24876,0.00016785,2]
[403021045,1769074239000,-168.0,0.00016788,2]
[403021046,1769074239010,-692.55,0.00016788,2]
[403021047,1769074239020,-9000.0,0.0001683,2]
[403021048,1769074239029,-500.0,0.0001683,2]
[403021049,1769074239038,-500.0,0.0001683,2]
[403021050,1769074239047,-500.0,0.0001683,2]
[403021051,1769074239056,-500.0,0.0001683,2]
[403021052,1769074239066,-500.0,0.0001683,2]
[403021053,1769074239075,-500.0,0.0001683,2]
[403021054,1769074239085,-823.77908852,0.0001683,2]
[403021055,1769074239095,-500.0,0.0001683,2]
[403021056,1769074239105,-500.0,0.0001683,2]
[403021057,1769074239116,-370.23847881,0.0001683,2]
[403021058,1769074239125,-281.39307329,0.0001683,2]
[403021059,1769074239134,-500.0,0.0001683,2]
[403021060,1769074239144,-250.0,0.0001683,2]
[403021061,1769074239153,-500.0,0.0001683,2]
[403021062,1769074239163,-250.0,0.0001683,2]
[403021063,1769074239173,-500.0,0.0001683,2]
[403021064,1769074239182,-500.0,0.0001683,2]
[403021065,1769074239192,-500.0,0.0001683,2]
[403021066,1769074239202,-500.0,0.0001683,2]
[403021067,1769074239212,-500.0,0.0001683,2]
[403021068,1769074239222,-500.0,0.0001683,2]
[403021069,1769074239232,-500.0,0.0001683,2]
[403021070,1769074239241,-500.0,0.0001683,2]
[403021071,1769074239251,-151.0,0.0001683,2]
[403021072,1769074239261,-500.0,0.0001683,2]
[403021073,1769074239271,-500.0,0.0001683,2]
[403021074,1769074239280,-500.0,0.0001683,2]
[403021075,1769074239289,-500.0,0.0001683,2]
[403021076,1769074239298,-500.0,0.0001683,2]
[403021077,1769074239308,-500.0,0.0001683,2]
[403021078,1769074239318,-500.0,0.0001683,2]
[403021079,1769074239327,-500.0,0.0001683,2]
[403021080,1769074239336,-500.0,0.0001683,2]
[403021081,1769074239349,-500.0,0.0001683,2]
[403021082,1769074239358,-181.08010149,0.0001683,2]
[403021083,1769074239367,-500.0,0.0001683,2]
[403021084,1769074239376,-500.0,0.0001683,2]
[403021085,1769074239385,-500.0,0.0001683,2]
[403021086,1769074239394,-500.0,0.0001683,2]
[403021087,1769074239403,-151.0,0.0001683,2]
[403021088,1769074239413,-151.0,0.0001683,2]
[403021089,1769074239423,-151.0,0.0001683,2]
[403021090,1769074239433,-151.0,0.0001683,2]
[403021091,1769074239443,-151.0,0.0001683,2]
[403021092,1769074239452,-151.0,0.0001683,2]
[403021093,1769074239461,-151.0,0.0001683,2]
[403021094,1769074239471,-151.0,0.0001683,2]
[403021095,1769074239481,-151.0,0.0001683,2]
[403021096,1769074239491,-151.0,0.0001683,2]
[403021097,1769074239501,-151.0,0.0001683,2]
[403021098,1769074239511,-151.0,0.0001683,2]
[403021099,1769074239520,-865.71,0.0001683,2]
[403021100,1769074239529,-156.075191,0.0001683,2]
[403021101,1769074239538,-151.0,0.0001683,2]
[403021102,1769074239547,-692.55,0.00016831,2]
[403021103,1769074239558,-219.60486892,0.00016845,2]
[403021104,1769074239568,-692.55,0.00016873,2]
[403021105,1769074239578,-9000.0,0.00016885,2]
[403021106,1769074239587,-168.0,0.00016914,2]
[403021107,1769074239596,-500.0,0.00016921,2]
[403021108,1769074239604,-9000.0,0.0001694,2]
[403021109,1769074239615,-166.66,0.00016967,2]
[403021110,1769074239627,-583.59647201,0.00016974,2]
[403021111,1769074239636,-1540.12032302,0.00016974,2]
[403021112,1769074239646,-2716.95480611,0.00016974,2]
[403021113,1769074239655,-4064.40189955,0.00016974,2]
[403021114,1769074239666,-233.57,0.00016983,2]
[403021115,1769074239676,-168.0,0.00016994,2]
[403021116,1769074239688,-500.0,0.00017,7]
[403021117,1769074239699,-500.0,0.00017,7]
[403021118,1769074239708,-500.0,0.00017,7]
[403021119,1769074239718,-539.95,0.00017,7]
[403021120,1769074239728,-250.0,0.00017,2]
[403021121,1769074239741,-464.8,0.00017021,2]
[403021122,1769074239750,-168.0,0.00017043,2]
[403021123,1769074239761,-865.71,0.00017104,2]
[403021124,1769074239770,-219.26,0.00017117,2]
[403021125,1769074239781,-298.0,0.00017212,2]
[403021126,1769074239790,-500.0,0.0001726,2]
[403021127,1769074239801,-500.0,0.0001726,2]
[403021128,1769074239812,-596.95186764,0.0001726,2]
[403021129,1769074239821,-151.0,0.00017261,2]
[403021130,1769074239830,-153.371315,0.00017261,2]
[403021132,1769074239839,-151.0,0.00017261,2]
[403021134,1769074239849,-153.371315,0.00017261,2]
[403021136,1769074239858,-151.0,0.00017261,2]
[403021138,1769074239867,-153.371315,0.00017261,2]
[403021140,1769074239876,-153.371315,0.00017261,2]
[403021142,1769074239885,-1312.95,0.00017314,2]
[403021144,1769074239894,-151.0,0.00017321,2]
[403021146,1769074239904,-4017.0,0.00017321,2]
[403021148,1769074239913,-500.0,0.00017355,2]
[403021150,1769074239923,-604.60838265,0.00017378,2]
[403021152,1769074239933,-865.71,0.00017378,2]
[403021154,1769074239942,-150.0,0.0001747,2]
[403021156,1769074239951,-500.0,0.0001747,2]
[403021158,1769074239960,-164.21135863,0.0001747,2]
[403021160,1769074239969,-150.0,0.0001747,2]
[403021163,1769074239979,-500.0,0.0001747,2]
[403021166,1769074239987,-500.0,0.0001747,2]
[403021169,1769074239996,-500.0,0.0001747,2]
[403021172,1769074240006,-294.68424811,0.0001747,2]
[403021174,1769074240015,-152.12544444,0.0001747,2]
[403021176,1769074240025,-201.01276846,0.0001747,2]
[403021179,1769074240035,-150.0,0.0001747,2]
[403021181,1769074240045,-150.0,0.0001747,2]
[403021183,1769074240055,-151.04205624,0.0001747,2]
[403021185,1769074240064,-150.0,0.0001747,2]
[403021187,1769074240073,-150.29439122,0.0001747,2]
[403021189,1769074240083,-150.49533801,0.0001747,2]
[403021191,1769074240091,-150.8786932,0.0001747,2]
[403021193,1769074240102,-150.31376427,0.0001747,2]
[403021195,1769074240113,-150.0,0.0001747,2]
[403021197,1769074240123,-500.0,0.0001747,2]
[403021199,1769074240132,-150.0,0.0001747,2]
[403021201,1769074240142,-150.0,0.0001747,2]
[403021203,1769074240151,-150.0,0.0001747,2]
[403021204,1769074240160,-500.0,0.0001747,2]
[403021205,1769074240171,-150.0,0.0001747,2]
[403021206,1769074240182,-150.0,0.0001747,2]
[403021207,1769074240193,-500.0,0.0001747,2]
[403021208,1769074240203,-846.21,0.0001747,2]
[403021209,1769074240213,-166.66,0.00017498,2]
[403021210,1769074240223,-600.0,0.000175,6]
[403021211,1769074240232,-300.0,0.000175,6]
[403021212,1769074240241,-150.0,0.00017525,2]
[403021213,1769074240250,-500.0,0.00017525,2]
[403021214,1769074240260,-150.0,0.00017525,2]
[403021215,1769074240269,-500.0,0.00017525,2]
[403021216,1769074240278,-500.0,0.00017525,2]
[403021217,1769074240288,-500.0,0.00017525,2]
[403021218,1769074240297,-150.0,0.00017525,2]
[403021219,1769074240307,-150.0,0.00017525,2]
[403021220,1769074240315,-154.25849627,0.00017525,2]
[403021221,1769074240325,-497.42246964,0.00017525,2]
[403021222,1769074240334,-150.0,0.00017525,2]
[403021223,1769074240343,-150.0,0.00017525,2]
[403021224,1769074240353,-500.0,0.00017525,2]
[403021225,1769074240363,-150.0,0.00017525,2]
[403021226,1769074240372,-500.0,0.00017525,2]
[403021227,1769074240382,-155.84,0.00017565,2]
[403021228,1769074240391,-211.68961379,0.0001758,2]
[403021229,1769074240400,-500.0,0.0001758,2]
[403021230,1769074240409,-205.41720599,0.0001758,2]
[403021231,1769074240419,-500.0,0.0001758,2]
[403021232,1769074240428,-200.85753101,0.0001758,2]
[403021233,1769074240438,-507.32438751,0.0001758,2]
[403021234,1769074240448,-200.0,0.0001758,2]
[403021235,1769074240460,-150.0,0.0001758,2]
[403021236,1769074240470,-150.0,0.0001758,2]
[403021237,1769074240482,-500.0,0.0001758,2]
[403021238,1769074240493,-150.0,0.0001758,2]
[403021239,1769074240503,-500.0,0.0001758,2]
[403021240,1769074240512,-200.0,0.000176,2]
[403021241,1769074240521,-200.0,0.000176,2]
[403021242,1769074240530,-151.0,0.000176,2]
[403021243,1769074240541,-151.0,0.000176,2]
[403021244,1769074240550,-151.0,0.000176,2]
[403021245,1769074240559,-151.0,0.000176,2]
[403021246,1769074240568,-151.0,0.000176,2]
[403021247,1769074240578,-1265.0,0.000176,2]
[403021248,1769074240588,-1265.0,0.000176,2]
[403021249,1769074240597,-1265.0,0.000176,2]
[403021250,1769074240607,-1265.0,0.000176,2]
[403021251,1769074240616,-1265.0,0.000176,2]
[403021252,1769074240625,-1265.0,0.000176,2]
[403021253,1769074240635,-1265.0,0.000176,2]
[403021254,1769074240644,-1200.0,0.000176,6]
[403021255,1769074240654,-700.0,0.000176,6]
[403021256,1769074240663,-168.0,0.00017608,2]
[403021257,1769074240672,-759.80012,0.0001761,2]
[403021258,1769074240682,-759.80011,0.0001761,2]
[403021259,1769074240691,-416.0,0.00017634,2]
[403021261,1769074240700,-232.71626821,0.00017634,2]
[403021262,1769074240709,-500.0,0.00017634,2]
[403021263,1769074240719,-150.0,0.00017634,2]
[403021264,1769074240728,-500.0,0.00017634,2]
[403021265,1769074240741,-464.8,0.00017636,2]
[403021266,1769074240750,-656.35219057,0.0001764,2]
[403021267,1769074240759,-865.71,0.00017652,2]
[403021268,1769074240768,-168.0,0.00017672,2]
[403021269,1769074240779,-250.0,0.00017687,2]
[403021270,1769074240788,-600.0,0.00017687,2]
[403021271,1769074240796,-250.0,0.00017687,2]
[403021272,1769074240805,-195.0,0.00017687,2]
[403021273,1769074240816,-250.0,0.00017687,2]
[403021274,1769074240826,-162.0,0.00017689,2]
[403021275,1769074240835,-500.0,0.00017689,2]
[403021276,1769074240844,-500.0,0.00017694,2]
[403021277,1769074240853,-200.0,0.00017695,2]
[403021278,1769074240862,-728.183,0.000177,2]
[403021279,1769074240872,-1900.0,0.000177,6]
[403021280,1769074240881,-1000.0,0.000177,6]
[403021281,1769074240891,-150.0,0.00017727,2]
[403021282,1769074240902,-500.0,0.00017744,2]
[403021283,1769074240911,-200.0,0.00017746,2]
[403021284,1769074240921,-200.0,0.00017776,2]
[403021285,1769074240931,-200.0,0.00017776,2]
[403021286,1769074240942,-155.421,0.00017782,2]
[403021287,1769074240953,-155.0,0.00017784,2]
[403021288,1769074240963,-759.80011,0.00017789,2]
[403021289,1769074240973,-759.80012,0.00017789,2]
[403021290,1769074240982,-759.80012,0.00017789,2]
[403021291,1769074240991,-759.80012,0.00017789,2]
[403021292,1769074241000,-500.0,0.00017799,2]
[403021293,1769074241009,-151.0,0.000178,2]
[403021294,1769074241019,-2500.0,0.000178,6]
[403021295,1769074241029,-1400.0,0.000178,6]
[403021296,1769074241038,-223.85595231,0.00017848,2]
[403021297,1769074241047,-168.0,0.00017852,2]
[403021298,1769074241057,-500.0,0.00017854,2]
[403021299,1769074241066,-1000.32393849,0.0001786,2]
[403021300,1769074241075,-1000.0,0.00017862,2]
[403021301,1769074241084,-1000.0,0.00017886,2]
[403021302,1769074241093,-351.57471195,0.000179,2]
[403021303,1769074241102,-3200.0,0.000179,6]
[403021304,1769074241111,-4838.7187,0.000179,2]
[403021305,1769074241121,-1800.0,0.000179,6]
[403021306,1769074241132,-6818.08751832,0.000179,2]
[403021307,1769074241141,-193.2322498,0.000179,3]
[403021308,1769074241150,-439.88445026,0.000179,2]
[403021309,1769074241159,-153.77419055,0.000179,2]
[403021310,1769074241168,-497.6192211,0.000179,2]
[403021311,1769074241178,-177.73683657,0.00017908,2]
[403021312,1769074241189,-865.71,0.00017926,2]
[403021313,1769074241200,-298.0,0.00017937,2]
[403021314,1769074241211,-200.0,0.00017954,2]
[403021315,1769074241220,-151.0,0.00017963,2]
[403021316,1769074241230,-151.0,0.00017963,2]
[403021317,1769074241241,-151.0,0.00017963,2]
[403021318,1769074241251,-151.0,0.00017963,2]
[403021319,1769074241261,-151.0,0.00017963,2]
[403021320,1769074241270,-151.0,0.00017963,2]
[403021321,1769074241280,-151.0,0.00017963,2]
[403021322,1769074241290,-151.0,0.00017963,2]
[403021323,1769074241300,-151.0,0.00017963,2]
[403021324,1769074241312,-151.0,0.00017963,2]
[403021325,1769074241321,-151.0,0.00017963,2]
[403021326,1769074241330,-151.0,0.00017963,2]
[403021327,1769074241339,-151.0,0.00017963,2]
[403021328,1769074241348,-151.0,0.00017963,2]
[403021329,1769074241359,-151.0,0.00017963,2]
[403021330,1769074241368,-151.0,0.00017963,2]
[403021331,1769074241377,-151.0,0.00017963,2]
[403021332,1769074241386,-151.0,0.00017963,2]
[403021333,1769074241395,-151.0,0.00017963,2]
[403021334,1769074241404,-151.0,0.00017963,2]
[403021335,1769074241413,-151.0,0.00017963,2]
[403021336,1769074241422,-151.0,0.00017963,2]
[403021337,1769074241431,-151.0,0.00017963,2]
[403021338,1769074241440,-151.0,0.00017963,2]
[403021339,1769074241449,-151.0,0.00017963,2]
[403021340,1769074241458,-151.0,0.00017963,2]
[403021341,1769074241468,-151.0,0.00017963,2]
[403021342,1769074241477,-164.13147686,0.00017963,2]
[403021343,1769074241486,-151.0,0.00017963,2]
[403021344,1769074241495,-153.371315,0.00017963,2]
[403021345,1769074241504,-151.0,0.00017963,2]
[403021346,1769074241513,-153.371315,0.00017963,2]
[403021347,1769074241522,-176.855016,0.00017963,2]
[403021348,1769074241531,-153.371315,0.00017963,2]
[403021349,1769074241540,-153.371315,0.00017963,2]
[403021350,1769074241549,-385.26111914,0.00017966,2]
[403021351,1769074241559,-500.0,0.00017966,2]
[403021352,1769074241568,-304.20371096,0.00017966,2]
[403021353,1769074241577,-186.76897281,0.00017966,2]
[403021354,1769074241586,-500.0,0.00017966,2]
[403021355,1769074241595,-500.0,0.00017966,2]
[403021356,1769074241604,-164.8516272,0.00017966,2]
[403021357,1769074241614,-155.264646,0.00017967,2]
[403021358,1769074241623,-43354.97053025,0.00017967,2]
[403021359,1769074241632,-15055.0,0.00017973,2]
[403021360,1769074241641,-150.0,0.00017973,2]
[403021361,1769074241651,-150.0,0.00017973,2]
[403021362,1769074241659,-1926.4181119,0.0001799,2]
[403021363,1769074241669,-1926.4181119,0.0001799,2]
[403021364,1769074241678,-150.0,0.00017999,2]
[403021365,1769074241687,-150.0,0.00017999,2]
[403021366,1769074241697,-150.0,0.00017999,2]
[403021367,1769074241706,-249.22843217,0.00017999,2]
[403021368,1769074241714,-779551.70120373,0.00018,2]
[403021369,1769074241724,-846965.73563495,0.00018,2]
[403021370,1769074241733,-150.0,0.00018,2]
[403021371,1769074241746,-338.37879492,0.00018,2]
[403021372,1769074241755,-150.0,0.00018,2]
[403021373,1769074241766,-5191.02966446,0.00018,2]
[403021374,1769074241775,-150.0,0.00018,2]
[403021375,1769074241786,-1303.73725579,0.00018,2]
[403021376,1769074241795,-1846016.72147786,0.00018,2]
[403021377,1769074241804,-151.0,0.00018,2]
[403021378,1769074241813,-153.371315,0.00018,2]
[403021379,1769074241823,-151.0,0.00018,2]
[403021380,1769074241832,-153.371315,0.00018,2]
[403021381,1769074241841,-153.371315,0.00018,2]
[403021382,1769074241850,-153.371311,0.00018,2]
[403021383,1769074241859,-913.0,0.00018,2]
[403021384,1769074241868,-981.0,0.00018,2]
[403021385,1769074241877,-333.05051013,0.00018,2]
[403021386,1769074241887,-921.0,0.00018,2]
[403021387,1769074241895,-298.0,0.00018013,2]
[403021388,1769074241904,-420.0,0.00018014,2]
[403021389,1769074241913,-420.0,0.00018014,2]
[403021390,1769074241922,-150.0,0.00018028,2]
[403021391,1769074241932,-166.66,0.00018076,2]
[403021392,1769074241941,-204.98273767,0.00018083,2]
[403021393,1769074241951,-1312.95,0.00018101,2]
[403021394,1769074241960,-1680.0,0.00018104,2]
[403021395,1769074241971,-200.0,0.00018133,2]
[403021396,1769074241981,-446.0,0.00018161,2]
[403021397,1769074241991,-1235.0,0.0001818,2]
[403021398,1769074242000,-865.71,0.000182,2]
[403021399,1769074242010,-168.0,0.00018219,2]
[403021400,1769074242019,-464.8,0.00018251,2]
[403021401,1769074242028,-168.0,0.00018259,2]
[403021402,1769074242037,-298.0,0.00018271,2]
[403021403,1769074242046,-168.0,0.0001829,2]
[403021404,1769074242056,-200.0,0.00018315,2]
[403021405,1769074242066,-446.0,0.00018404,2]
[403021406,1769074242076,-865.71,0.00018474,2]
[403021407,1769074242088,-155.84,0.0001849,2]
[403021408,1769074242098,-168.0,0.00018521,2]
[403021409,1769074242108,-500.0,0.00018548,2]
[403021410,1769074242118,-446.0,0.00018556,2]
[403021411,1769074242128,-446.0,0.00018597,2]
[403021412,1769074242138,-298.0,0.00018651,2]
[403021413,1769074242148,-166.66,0.00018653,2]
[403021414,1769074242158,-168.0,0.00018671,2]
[403021415,1769074242167,-198.5825,0.00018678,2]
[403021416,1769074242178,-298.0,0.00018689,2]
[403021417,1769074242187,-865.73,0.00018748,2]
[403021418,1769074242196,-32052.6214114,0.0001875,2]
[403021419,1769074242206,-7773.9269118,0.0001875,2]
[403021420,1769074242215,-27656.4867027,0.0001875,2]
[403021421,1769074242224,-35976.2918286,0.0001875,2]
[403021422,1769074242233,-151.3,0.000188,2]
[403021423,1769074242251,-151.3,0.000188,2]
[403021424,1769074242261,-151.3,0.000188,2]
[403021425,1769074242270,-151.3,0.000188,2]
[403021426,1769074242280,-151.3,0.000188,2]
[403021427,1769074242290,-151.3,0.000188,2]
[403021428,1769074242299,-151.3,0.000188,2]
[403021429,1769074242309,-151.3,0.000188,2]
[403021430,1769074242318,-151.3,0.000188,2]
[403021431,1769074242327,-151.3,0.000188,2]
[403021432,1769074242336,-151.3,0.000188,2]
[403021433,1769074242345,-151.3,0.000188,2]
[403021434,1769074242355,-151.3,0.000188,2]
[403021435,1769074242364,-151.3,0.000188,2]
[403021436,1769074242374,-151.3,0.000188,2]
[403021437,1769074242383,-151.3,0.000188,2]
[403021438,1769074242393,-151.3,0.000188,2]
[403021439,1769074242404,-151.3,0.000188,2]
[403021440,1769074242415,-151.3,0.000188,2]
[403021441,1769074242425,-151.3,0.000188,2]
[403021442,1769074242434,-151.3,0.000188,2]
[403021443,1769074242445,-151.3,0.000188,2]
[403021444,1769074242454,-151.3,0.000188,2]
[403021445,1769074242463,-151.3,0.000188,2]
[403021446,1769074242472,-151.3,0.000188,2]
[403021447,1769074242481,-151.3,0.000188,2]
[403021448,1769074242491,-151.3,0.000188,2]
[403021449,1769074242502,-151.3,0.000188,2]
[403021450,1769074242511,-151.3,0.000188,2]
[403021451,1769074242520,-151.3,0.000188,2]
[403021452,1769074242529,-151.3,0.000188,2]
[403021453,1769074242539,-151.3,0.000188,2]
[403021454,1769074242548,-151.3,0.000188,2]
[403021455,1769074242558,-151.3,0.000188,2]
[403021456,1769074242568,-168.0,0.00018841,2]
[403021457,1769074242577,-464.8,0.00018866,2]
[403021458,1769074242587,-1312.95,0.00018888,2]
[403021459,1769074242596,-5166.25962011,0.00019,2]
[403021460,1769074242605,-1074.4003776,0.00019146,2]
[403021461,1769074242615,-500.0,0.00019178,2]
[403021462,1769074242624,-500.0,0.00019178,2]
[403021463,1769074242634,-463.44846878,0.00019178,2]